bitfinex/quotes_BTCUSD_20220226
["timestamp","ask_amount","ask_price","bid_price","bid_amount"]
[1645847444504,0.26312457,39476.0,39473.0,0.39162447]
[1645847445605,0.26312457,39476.0,39473.0,0.39125573]
[1645847445857,0.33239228,39475.0,39473.0,0.39162447]
[1645847446050,0.0507,39474.0,39473.0,0.39162447]
[1645847446651,0.0507,39474.0,39473.0,0.39125573]
[1645847449256,0.0527,39479.0,39473.0,0.39125573]
[1645847449708,0.20387475,39477.0,39473.0,0.39125573]
[1645847450210,0.25457475,39477.0,39473.0,0.39125573]
[1645847450609,0.25457475,39477.0,39473.0,0.39162461]
[1645847451109,0.24886377,39477.0,39473.0,0.39162461]
[1645847451310,0.24386377,39477.0,39473.0,0.39162461]
[1645847451510,0.24386377,39477.0,39473.0,0.39125573]
[1645847451709,0.24386377,39477.0,39473.0,0.39162461]
[1645847452711,0.24386377,39477.0,39473.0,0.39125573]
[1645847452918,0.24386377,39477.0,39473.0,0.39162461]
[1645847453556,0.57625605,39477.0,39473.0,0.39162461]
[1645847453760,1.15,39476.0,39470.0,0.006874]
[1645847453956,0.0507,39475.0,39470.0,0.22093716]
[1645847454156,0.0507,39475.0,39473.0,0.00036888]
[1645847455159,0.0507,39475.0,39470.0,0.22093716]
[1645847455359,0.19341537,39471.0,39470.0,0.22093716]
[1645847455758,0.19341537,39471.0,39470.0,0.006874]
[1645847455958,0.19341537,39471.0,39470.0,0.22093716]
[1645847456558,0.19441537,39471.0,39470.0,0.22093716]
[1645847456760,0.001,39471.0,39470.0,0.22093716]
[1645847457021,0.001,39471.0,39470.0,0.006874]
[1645847457320,0.001,39471.0,39470.0,0.27444451]
[1645847457720,0.22261898,39477.0,39470.0,0.27444451]
[1645847457923,0.22261898,39477.0,39472.0,0.21406552]
[1645847458521,0.22361898,39477.0,39472.0,0.21406552]
[1645847459726,0.22261898,39477.0,39472.0,0.21406552]
[1645847460324,0.21316715,39475.0,39471.0,0.0003689]
[1645847460524,0.0507,39474.0,39471.0,0.0003689]
[1645847461166,0.0507,39474.0,39470.0,0.006874]
[1645847461366,0.0507,39474.0,39471.0,0.0003689]
[1645847462464,0.0507,39474.0,39471.0,0.0003469]
[1645847463468,0.0507,39474.0,39470.0,0.006874]
[1645847463666,0.0507,39474.0,39471.0,0.0003469]
[1645847464716,0.0507,39474.0,39470.0,0.006874]
[1645847464914,0.0507,39474.0,39471.0,0.0003469]
[1645847465115,1.15,39472.0,39466.0,0.26757051]
[1645847465318,1.15,39472.0,39464.0,0.26757051]
[1645847465319,0.6343,39467.0,39464.0,0.26757051]
[1645847465517,0.6343,39465.0,39458.0,0.76757051]
[1645847465718,1.26875726,39466.0,39459.0,0.76023]
[1645847465719,0.7733,39463.0,39459.0,0.76023]
[1645847465914,0.38533726,39464.0,39452.0,0.26757051]
[1645847465915,0.6343,39459.0,39452.0,0.26757051]
[1645847466119,0.7733,39461.0,39449.0,0.05]
[1645847466120,0.19689726,39454.0,39451.0,0.26757051]
[1645847466514,0.0507,39453.0,39451.0,0.26757051]
[1645847466717,0.03796869,39453.0,39451.0,0.26757051]
[1645847467315,0.03796869,39453.0,39450.0,0.26757051]
[1645847467715,0.03796869,39453.0,39448.0,0.33608462]
[1645847467716,0.03796869,39453.0,39448.0,0.28257051]
[1645847468116,0.03796869,39453.0,39448.0,0.28250007]
[1645847469555,0.03796869,39453.0,39448.0,0.015]
[1645847469757,0.03796869,39453.0,39449.0,0.00034842]
[1645847470761,0.03796869,39453.0,39448.0,0.015]
[1645847472409,0.03796869,39453.0,39444.0,0.32100008]
[1645847474410,0.05,39457.0,39453.0,0.01203131]
[1645847474610,0.0507,39456.0,39453.0,0.01203131]
[1645847475858,0.0507,39456.0,39453.0,0.0123917]
[1645847476458,0.0517,39456.0,39453.0,0.0123917]
[1645847476860,0.0517,39456.0,39453.0,0.01203131]
[1645847477860,0.0507,39456.0,39453.0,0.01203131]
[1645847478461,0.33220302,39455.0,39453.0,0.01203131]
[1645847478661,0.0507,39454.0,39453.0,0.01203131]
[1645847479266,0.1007,39454.0,39453.0,0.01203131]
[1645847480309,0.41425187,39454.0,39453.0,0.01203131]
[1645847482811,0.74645489,39454.0,39453.0,0.01203131]
[1645847483256,0.41425187,39454.0,39453.0,0.01203131]
[1645847483457,0.74645489,39454.0,39453.0,0.01203131]
[1645847483657,0.41425187,39454.0,39453.0,0.01203131]
[1645847483860,0.01558611,39447.0,39442.0,0.1166]
[1645847484057,0.0507,39446.0,39442.0,0.1166]
[1645847484259,0.0507,39446.0,39440.0,0.04]
[1645847486660,0.0376786,39446.0,39441.0,0.1]
[1645847486859,0.0376786,39446.0,39440.0,0.04]
[1645847487111,0.0376786,39446.0,39441.0,0.1]
[1645847487508,0.0376786,39446.0,39440.0,0.04]
[1645847487708,0.0376786,39446.0,39441.0,0.1]
[1645847487910,0.0376786,39446.0,39442.0,0.00034777]
[1645847488909,0.0376786,39446.0,39440.0,0.04]
[1645847489108,0.0376786,39446.0,39442.0,0.00035556]
[1645847490111,0.0376786,39446.0,39440.0,0.04]
[1645847490310,0.0376786,39446.0,39442.0,0.00035556]
[1645847491157,0.0376786,39446.0,39440.0,0.04]
[1645847491357,0.0376786,39446.0,39442.0,0.00035556]
[1645847492457,0.0376786,39446.0,39440.0,0.04]
[1645847492658,0.0376786,39446.0,39442.0,0.00034724]
[1645847493560,0.0376786,39446.0,39440.0,0.04]
[1645847493759,0.0376786,39446.0,39442.0,0.00034724]
[1645847494608,0.0386786,39446.0,39442.0,0.00034724]
[1645847494810,0.0386786,39446.0,39440.0,0.04]
[1645847495008,0.0386786,39446.0,39442.0,0.00034724]
[1645847495907,0.0376786,39446.0,39442.0,0.00034724]
[1645847496206,0.0376786,39446.0,39442.0,0.0003478]
[1645847497209,0.0376786,39446.0,39440.0,0.0395447]
[1645847497412,0.0376786,39446.0,39442.0,0.0003478]
[1645847499558,0.0376786,39446.0,39440.0,0.0395447]
[1645847499758,0.0376786,39446.0,39442.0,0.0003485]
[1645847500760,0.0376786,39446.0,39440.0,0.0395447]
[1645847500961,0.0376786,39446.0,39442.0,0.0003485]
[1645847501160,0.0376786,39446.0,39440.0,0.0348932]
[1645847503518,0.0376786,39446.0,39440.0,0.03524167]
[1645847503716,0.0376786,39446.0,39440.0,0.30248304]
[1645847504317,0.0326786,39446.0,39440.0,0.30248304]
[1645847504516,0.0326786,39446.0,39440.0,0.30213457]
[1645847504716,0.0326786,39446.0,39442.0,0.21393094]
[1645847505120,0.0326786,39446.0,39444.0,0.21393094]
[1645847505320,0.0326786,39446.0,39445.0,0.21393094]
[1645847506756,0.01182695,39446.0,39445.0,0.21393094]
[1645847507558,0.01182695,39446.0,39444.0,0.21393094]
[1645847507765,0.01182695,39446.0,39445.0,0.21393094]
[1645847507958,0.01558611,39447.0,39445.0,0.21393094]
[1645847508160,0.01558611,39447.0,39445.0,0.26724137]
[1645847508858,0.01558611,39447.0,39446.0,0.26724137]
[1645847510012,0.01558611,39447.0,39443.0,0.32100008]
[1645847510616,0.01558611,39447.0,39444.0,0.32100008]
[1645847510812,0.01558611,39447.0,39443.0,0.32100008]
[1645847511012,0.01558611,39447.0,39444.0,0.32100008]
[1645847512919,0.01558611,39447.0,39442.0,0.3745001]
[1645847512920,0.01558611,39447.0,39445.0,0.32100008]
[1645847519407,0.01558611,39447.0,39445.0,0.31600008]
[1645847519608,0.01558611,39447.0,39444.0,0.3745001]
[1645847520307,0.01558611,39447.0,39443.0,0.3745001]
[1645847520511,0.01558611,39447.0,39444.0,0.3745001]
[1645847521758,0.01558611,39447.0,39445.0,0.50186679]
[1645847521961,0.01558611,39447.0,39445.0,0.3745001]
[1645847524504,0.22816165,39447.0,39445.0,0.3745001]
[1645847524709,0.22916165,39447.0,39445.0,0.3745001]
[1645847525905,0.22816165,39447.0,39445.0,0.3745001]
[1645847526709,0.22916165,39447.0,39445.0,0.3745001]
[1645847528109,0.22816165,39447.0,39445.0,0.3745001]
[1645847528372,0.22816165,39447.0,39446.0,0.32135638]
[1645847528569,0.22916165,39447.0,39446.0,0.32135638]
[1645847528776,0.22916165,39447.0,39445.0,0.3745001]
[1645847528970,0.22916165,39447.0,39444.0,0.3745001]
[1645847529372,0.22916165,39447.0,39446.0,0.32135804]
[1645847529570,0.01658611,39447.0,39444.0,0.3745001]
[1645847529773,0.01658611,39447.0,39446.0,0.3213552]
[1645847530771,0.01758611,39447.0,39446.0,0.3213552]
[1645847530977,0.01658611,39447.0,39446.0,0.3213552]
[1645847531173,0.01658611,39447.0,39444.0,0.3745001]
[1645847532115,0.01558611,39447.0,39444.0,0.3745001]
[1645847532515,0.01558611,39447.0,39446.0,0.32135987]
[1645847535117,0.01558611,39447.0,39444.0,0.3745001]
[1645847535316,0.01558611,39447.0,39446.0,0.32136363]
[1645847535518,0.01558611,39447.0,39444.0,0.3745001]
[1645847535763,0.01558611,39447.0,39446.0,0.32136302]
[1645847535960,0.01558611,39447.0,39444.0,0.3745001]
[1645847536162,0.01558611,39447.0,39446.0,0.32136366]
[1645847536361,0.01558611,39447.0,39445.0,0.32136742]
[1645847536661,0.01658611,39447.0,39445.0,0.32136742]
[1645847537963,0.01558611,39447.0,39444.0,0.32136742]
[1645847542419,0.01558611,39447.0,39446.0,0.32136742]
[1645847543259,0.01558611,39447.0,39445.0,0.32136742]
[1645847543260,0.00058611,39447.0,39445.0,0.32136742]
[1645847543660,0.00058611,39447.0,39444.0,0.32136742]
[1645847543966,0.00058611,39447.0,39443.0,0.32136742]
[1645847544161,0.05128611,39447.0,39443.0,0.32136742]
[1645847544360,0.22589521,39445.0,39443.0,0.32066773]
[1645847545262,0.0507,39444.0,39440.0,0.0348932]
[1645847545462,0.0507,39444.0,39440.0,0.03524117]
[1645847546466,0.0507,39444.0,39440.0,0.0348932]
[1645847546662,0.0507,39444.0,39440.0,0.03524116]
[1645847547714,0.0507,39444.0,39440.0,0.0348932]
[1645847547914,0.0507,39444.0,39440.0,0.03524116]
[1645847548716,0.0517,39444.0,39440.0,0.03524116]
[1645847548918,0.0517,39444.0,39440.0,0.0348932]
[1645847549121,0.0517,39444.0,39440.0,0.03524116]
[1645847550120,0.0507,39444.0,39440.0,0.0348932]
[1645847550319,0.0507,39444.0,39440.0,0.03512612]
[1645847550761,0.0517,39444.0,39440.0,0.03512612]
[1645847551364,0.0517,39444.0,39440.0,0.0348932]
[1645847551563,0.0517,39444.0,39440.0,0.03512612]
[1645847551963,0.0507,39444.0,39440.0,0.03512612]
[1645847552564,0.0507,39444.0,39440.0,0.0348932]
[1645847552764,0.0527,39444.0,39440.0,0.03526201]
[1645847553763,0.0527,39444.0,39440.0,0.0348932]
[1645847553966,0.0507,39444.0,39440.0,0.03526201]
[1645847555008,0.0507,39444.0,39440.0,0.0348932]
[1645847555208,0.0507,39444.0,39440.0,0.03526201]
[1645847556011,0.37844234,39444.0,39440.0,0.03526201]
[1645847556510,0.37844234,39444.0,39438.0,0.0005]
[1645847556511,0.06655726,39439.0,39438.0,0.0005]
[1645847556711,0.11725726,39439.0,39438.0,0.0005]
[1645847556913,0.30783004,39439.0,39438.0,0.0005]
[1645847560862,0.30883004,39439.0,39438.0,0.0005]
[1645847561263,0.11825726,39439.0,39438.0,0.0005]
[1645847561664,0.06755726,39439.0,39438.0,0.0005]
[1645847561864,0.06755726,39439.0,39438.0,0.32179617]
[1645847562120,0.06655726,39439.0,39438.0,0.0005]
[1645847562319,0.06655726,39439.0,39438.0,0.377865]
[1645847562515,0.06655726,39439.0,39438.0,0.80546356]
[1645847562712,0.06655726,39439.0,39438.0,0.48286337]
[1645847563313,0.06655726,39439.0,39438.0,0.48022597]
[1645847563713,0.06655726,39439.0,39438.0,0.10549837]
[1645847563913,0.06655726,39439.0,39438.0,0.48286337]
[1645847564115,0.06655726,39439.0,39438.0,0.10549837]
[1645847564719,0.06655726,39439.0,39438.0,0.32172324]
[1645847566364,0.06655726,39439.0,39438.0,0.32695578]
[1645847566763,0.06755726,39439.0,39438.0,0.32695578]
[1645847568065,0.06755726,39439.0,39438.0,0.80006543]
[1645847568666,0.06655726,39439.0,39438.0,0.80006543]
[1645847568966,0.06755726,39439.0,39438.0,0.80006543]
[1645847569366,0.06755726,39439.0,39438.0,0.47360965]
[1645847569609,0.06755726,39439.0,39438.0,0.32174516]
[1645847570113,0.06655726,39439.0,39438.0,0.0005]
[1645847570809,0.06755726,39439.0,39438.0,0.0005]
[1645847572008,0.06655726,39439.0,39438.0,0.0005]
[1645847572210,0.06655726,39439.0,39438.0,0.32176688]
[1645847572910,0.06755726,39439.0,39438.0,0.32176688]
[1645847573111,0.06755726,39439.0,39438.0,0.0005]
[1645847573968,0.06655726,39439.0,39438.0,0.32176803]
[1645847574467,0.06655726,39439.0,39438.0,0.0005]
[1645847574667,0.06655726,39439.0,39438.0,0.32177036]
[1645847574867,0.06755726,39439.0,39438.0,0.32177036]
[1645847575870,0.06755726,39439.0,39438.0,0.0005]
[1645847576068,0.06655726,39439.0,39438.0,0.32177036]
[1645847578915,0.06755726,39439.0,39438.0,0.0005]
[1645847580014,0.06655726,39439.0,39438.0,0.32179415]
[1645847580218,0.06655726,39439.0,39438.0,0.0005]
[1645847581267,0.06648468,39439.0,39438.0,0.0005]
[1645847583072,0.06648468,39439.0,39438.0,0.32182579]
[1645847583971,0.06648468,39439.0,39438.0,0.0005]
[1645847584613,0.06648468,39439.0,39438.0,0.3218345]
[1645847584813,0.06648468,39439.0,39438.0,0.0005]
[1645847585514,0.06648468,39439.0,39438.0,0.37536505]
[1645847585914,0.06648468,39439.0,39438.0,0.54001084]
[1645847586115,0.06648468,39439.0,39438.0,0.37536505]
[1645847586316,0.06648468,39439.0,39438.0,0.54002102]
[1645847587015,0.06648468,39439.0,39438.0,0.0005]
[1645847588272,0.06648468,39439.0,39438.0,0.54004972]
[1645847588869,0.06648468,39439.0,39438.0,0.16517769]
[1645847589870,0.06648468,39439.0,39438.0,0.37542233]
[1645847590269,0.06648468,39439.0,39438.0,0.54010002]
[1645847590470,0.06648468,39439.0,39438.0,0.16517769]
[1645847590873,0.06648468,39439.0,39438.0,0.37542774]
[1645847591070,0.06648468,39439.0,39438.0,0.54010543]
[1645847591471,0.06648468,39439.0,39438.0,0.16517769]
[1645847591670,0.06545641,39439.0,39438.0,0.16517769]
[1645847594919,0.06645641,39439.0,39438.0,0.16517769]
[1645847596068,0.06545641,39439.0,39438.0,0.16517769]
[1645847596865,0.06645641,39439.0,39438.0,0.16517769]
[1645847598168,0.06545641,39439.0,39438.0,0.16517769]
[1645847598368,0.06545641,39439.0,39438.0,0.37540692]
[1645847598572,0.06545641,39439.0,39438.0,0.54008461]
[1645847598968,0.06645641,39439.0,39438.0,0.54008461]
[1645847599368,0.06645641,39439.0,39438.0,0.16517769]
[1645847599369,0.06145641,39439.0,39438.0,0.16517769]
[1645847600118,0.06045641,39439.0,39438.0,0.16517769]
[1645847600917,0.06145641,39439.0,39438.0,0.16517769]
[1645847602119,0.06045641,39439.0,39438.0,0.16517769]
[1645847602520,0.06045641,39439.0,39438.0,0.37540822]
[1645847602920,0.06145641,39439.0,39438.0,0.54008591]
[1645847603361,0.06145641,39439.0,39438.0,0.16517769]
[1645847603563,0.06145641,39439.0,39438.0,0.37543325]
[1645847604163,0.06045641,39439.0,39438.0,0.54010452]
[1645847604962,0.06145641,39439.0,39438.0,0.54010452]
[1645847606268,0.06045641,39439.0,39438.0,0.54010452]
[1645847606665,0.06045641,39439.0,39438.0,0.16517769]
[1645847606864,0.06145641,39439.0,39438.0,0.16517769]
[1645847607715,0.06145641,39439.0,39438.0,0.540131]
[1645847608113,0.06045641,39439.0,39438.0,0.540131]
[1645847609113,0.06045641,39439.0,39438.0,0.535131]
[1645847609716,0.06045641,39439.0,39438.0,0.16467769]
[1645847612874,0.06145641,39439.0,39438.0,0.16467769]
[1645847613674,0.06145641,39439.0,39438.0,0.13276245]
[1645847613875,0.06145641,39439.0,39437.0,0.001]
[1645847614078,0.06145641,39439.0,39437.0,0.00135619]
[1645847614274,0.06045641,39439.0,39437.0,0.00135619]
[1645847614914,0.06145641,39439.0,39437.0,0.00135619]
[1645847615116,0.06145641,39439.0,39437.0,0.001]
[1645847616115,0.06045641,39439.0,39437.0,0.37598048]
[1645847616317,0.06045641,39439.0,39438.0,0.32142061]
[1645847616518,0.11115641,39439.0,39438.0,0.32142061]
[1645847617017,0.11115641,39439.0,39438.0,0.32141876]
[1645847618018,0.11115641,39439.0,39437.0,0.00134788]
[1645847618263,0.11115641,39439.0,39437.0,0.45957428]
[1645847618460,0.11115641,39439.0,39437.0,0.37632836]
[1645847618661,0.11115641,39439.0,39438.0,0.32141017]
[1645847619661,0.11115641,39439.0,39437.0,0.32241017]
[1645847619865,0.11115641,39439.0,39438.0,0.32141017]
[1645847620864,0.11115641,39439.0,39437.0,0.00134788]
[1645847620865,0.11115641,39439.0,39437.0,0.32275805]
[1645847621064,0.11115641,39439.0,39437.0,0.32241017]
[1645847621364,0.11115641,39439.0,39438.0,0.32141017]
[1645847623017,0.11215641,39439.0,39438.0,0.32141017]
[1645847624216,0.11115641,39439.0,39438.0,0.32141017]
[1645847626664,0.11115641,39439.0,39437.0,0.32275857]
[1645847626965,0.11115641,39439.0,39437.0,0.32241017]
[1645847627962,0.11115641,39439.0,39437.0,0.001]
[1645847628967,0.11215641,39439.0,39437.0,0.001]
[1645847630218,0.30729204,39439.0,39437.0,0.001]
[1645847631016,0.30721052,39439.0,39437.0,0.001]
[1645847631717,0.30721052,39439.0,39433.0,0.001]
[1645847631718,0.00165159,39436.0,39433.0,0.001]
[1645847633120,0.00165159,39436.0,39433.0,0.32241017]
[1645847634966,0.00265159,39436.0,39433.0,0.31741017]
[1645847635367,0.00265159,39436.0,39432.0,0.001]
[1645847635567,0.00265159,39436.0,39433.0,0.00036909]
[1645847636169,0.00165159,39436.0,39433.0,0.00036909]
[1645847636570,0.00165159,39436.0,39432.0,0.001]
[1645847636771,0.00165159,39436.0,39433.0,0.00036909]
[1645847637818,0.00165159,39436.0,39432.0,0.001]
[1645847638119,0.00165159,39436.0,39433.0,0.00036909]
[1645847638918,0.00073839,39436.0,39433.0,0.00036909]
[1645847639117,0.00073839,39436.0,39432.0,0.001]
[1645847639318,0.00073839,39436.0,39433.0,0.00036909]
[1645847640319,0.00073839,39436.0,39432.0,0.001]
[1645847640518,0.00073839,39436.0,39433.0,0.00036909]
[1645847641572,0.00073839,39436.0,39432.0,0.001]
[1645847641768,0.00073839,39436.0,39433.0,0.00036909]
[1645847642774,0.00073839,39436.0,39432.0,0.001]
[1645847642970,0.00073839,39436.0,39433.0,0.00036909]
[1645847643171,0.00073839,39436.0,39433.0,0.32168902]
[1645847643770,0.00073839,39436.0,39433.0,0.00036909]
[1645847643969,0.00073839,39436.0,39432.0,0.32231993]
[1645847644169,0.00073839,39436.0,39433.0,0.0003236]
[1645847645116,0.00173839,39436.0,39432.0,0.32231993]
[1645847645321,0.00173839,39436.0,39433.0,0.0003236]
[1645847645921,0.00173839,39436.0,39433.0,0.32164353]
[1645847646117,0.00073839,39436.0,39433.0,0.32164353]
[1645847646318,0.00073839,39436.0,39433.0,0.0003236]
[1645847646517,0.00073839,39436.0,39433.0,0.0006472]
[1645847646718,0.00073839,39436.0,39433.0,0.32164353]
[1645847647719,0.00073839,39436.0,39433.0,0.32197117]
[1645847647923,0.00073839,39436.0,39434.0,0.32131993]
[1645847649668,0.00073839,39436.0,39434.0,0.32131532]
[1645847649868,0.00073839,39436.0,39433.0,0.32152562]
[1645847650068,0.00073839,39436.0,39433.0,0.32173592]
[1645847650267,0.00073839,39436.0,39433.0,0.32152562]
[1645847650573,0.00073839,39436.0,39434.0,0.32131532]
[1645847650769,0.00073839,39436.0,39433.0,0.32152562]
[1645847651371,0.00073839,39436.0,39433.0,0.32188071]
[1645847651571,0.00073839,39436.0,39433.0,0.32167041]
[1645847652216,0.00073839,39436.0,39433.0,0.00035509]
[1645847652617,0.00073839,39436.0,39435.0,0.37486788]
[1645847652817,0.00073839,39436.0,39433.0,0.32167269]
[1645847653019,0.00073839,39436.0,39434.0,0.32133409]
[1645847653020,0.00273839,39436.0,39434.0,0.32133409]
[1645847653816,0.00273839,39436.0,39435.0,0.32133409]
[1645847654218,0.00073839,39436.0,39435.0,0.32133409]
[1645847655216,0.00073839,39436.0,39434.0,0.00032889]
[1645847656069,0.00073839,39436.0,39433.0,0.37486788]
[1645847656269,0.00073839,39436.0,39433.0,0.00032889]
[1645847657270,0.00073839,39436.0,39433.0,0.37486788]
[1645847657470,0.00073839,39436.0,39433.0,0.40630988]
[1645847658473,0.00073839,39436.0,39433.0,0.40596573]
[1645847658672,0.00073839,39436.0,39433.0,0.40633377]
[1645847658870,0.00073839,39436.0,39433.0,0.37523592]
[1645847659616,0.00073839,39436.0,39433.0,0.37486788]
[1645847659815,0.00073839,39436.0,39433.0,0.37523592]
[1645847660517,0.00073839,39436.0,39433.0,0.00036804]
[1645847660718,0.00073839,39436.0,39432.0,0.37586788]
[1645847660918,0.00073839,39436.0,39433.0,0.00036928]
[1645847661918,0.00073839,39436.0,39432.0,0.37586788]
[1645847662119,0.00073839,39436.0,39433.0,0.00036928]
[1645847662922,0.00164819,39436.0,39433.0,0.00036928]
[1645847663122,0.00164819,39436.0,39432.0,0.001]
[1645847663362,0.00164819,39436.0,39433.0,0.00036928]
[1645847664166,0.00064819,39436.0,39433.0,0.00036928]
[1645847664365,0.00064819,39436.0,39432.0,0.37586788]
[1645847664566,0.00064819,39436.0,39433.0,0.40717534]
[1645847664765,0.00064819,39436.0,39433.0,0.37523716]
[1645847664966,0.00164819,39436.0,39433.0,0.37523716]
[1645847665567,0.00164819,39436.0,39433.0,0.37486788]
[1645847665769,0.00164819,39436.0,39433.0,0.37523716]
[1645847666171,0.00064819,39436.0,39433.0,0.37523716]
[1645847666769,0.00064819,39436.0,39433.0,0.37486788]
[1645847667023,0.00064819,39436.0,39433.0,0.37478646]
[1645847668028,0.00064819,39436.0,39433.0,0.37441718]
[1645847668226,0.00064819,39436.0,39433.0,0.40120021]
[1645847669325,0.00064819,39436.0,39433.0,0.40156954]
[1645847669526,0.00064819,39436.0,39433.0,0.37478651]
[1645847670427,0.00064819,39436.0,39433.0,0.37441718]
[1645847670627,0.00064819,39436.0,39433.0,0.00036933]
[1645847671671,0.00064819,39436.0,39432.0,0.001]
[1645847671869,0.00064819,39436.0,39433.0,0.00036933]
[1645847672869,0.00064819,39436.0,39432.0,0.001]
[1645847673069,0.00064819,39436.0,39433.0,0.00036933]
[1645847673969,0.00064819,39436.0,39432.0,0.37605148]
[1645847674173,0.00064819,39436.0,39433.0,0.00036933]
[1645847675117,0.00064819,39436.0,39432.0,0.37605148]
[1645847675118,0.00164819,39436.0,39432.0,0.37605148]
[1645847675316,0.00164819,39436.0,39433.0,0.00036933]
[1645847676217,0.00064819,39436.0,39433.0,0.00036933]
[1645847676417,0.00064819,39436.0,39432.0,0.37605148]
[1645847676618,0.00064819,39436.0,39433.0,0.00036933]
[1645847677518,0.00064819,39436.0,39432.0,0.37605148]
[1645847677719,0.00064819,39436.0,39433.0,0.00036933]
[1645847677919,0.00064819,39436.0,39433.0,0.0002641]
[1645847678571,0.00064819,39436.0,39433.0,0.40374477]
[1645847678772,0.00064819,39436.0,39433.0,0.40348067]
[1645847678972,0.00264819,39436.0,39433.0,0.40348067]
[1645847679272,0.00264819,39436.0,39432.0,0.37605148]
[1645847680275,0.21779207,39434.0,39432.0,0.37505148]
[1645847680484,0.21779207,39434.0,39430.0,0.001]
[1645847680485,0.32645578,39433.0,39430.0,0.001]
[1645847680680,0.57168368,39431.0,39424.0,0.001]
[1645847680882,0.37715578,39430.0,39424.0,0.001]
[1645847681277,0.6343,39429.0,39424.0,0.001]
[1645847681488,0.37715578,39428.0,39424.0,0.001]
[1645847681675,0.37715578,39428.0,39426.0,0.00023255]
[1645847681877,0.11013,39427.0,39426.0,0.00023255]
[1645847682127,0.16083,39427.0,39426.0,0.00023255]
[1645847682321,0.16083,39427.0,39424.0,0.001]
[1645847682522,0.16083,39427.0,39425.0,0.00036937]
[1645847682523,1.11145578,39427.0,39425.0,0.00036937]
[1645847682723,0.32645578,39426.0,39425.0,0.00036937]
[1645847682923,0.42715578,39426.0,39425.0,0.00036937]
[1645847683422,0.1007,39426.0,39425.0,0.00036937]
[1645847683625,1.15,39425.0,39421.0,0.011]
[1645847683827,0.37715578,39424.0,39421.0,0.011]
[1645847684123,0.42715578,39424.0,39421.0,0.011]
[1645847685125,0.42815578,39424.0,39421.0,0.011]
[1645847685771,0.40293764,39424.0,39421.0,0.011]
[1645847685978,0.001,39424.0,39421.0,0.011]
[1645847686176,0.001,39424.0,39422.0,0.377365]
[1645847686774,0.57168368,39431.0,39422.0,0.377365]
[1645847686974,0.001,39429.0,39422.0,0.002]
[1645847687376,0.001,39429.0,39423.0,0.0003691]
[1645847688376,0.57168368,39431.0,39421.0,0.011]
[1645847688574,0.57168368,39431.0,39423.0,0.0003691]
[1645847688977,0.57268368,39431.0,39423.0,0.0003691]
[1645847689622,0.57268368,39431.0,39421.0,0.011]
[1645847689822,0.57268368,39431.0,39423.0,0.0003691]
[1645847690222,0.57168368,39431.0,39423.0,0.0003691]
[1645847690822,0.57168368,39431.0,39421.0,0.011]
[1645847691023,0.57268368,39431.0,39423.0,0.0003691]
[1645847692025,0.57268368,39431.0,39421.0,0.011]
[1645847692226,0.57168368,39431.0,39423.0,0.0003691]
[1645847693025,0.57268368,39431.0,39423.0,0.0003691]
[1645847693267,0.57268368,39431.0,39421.0,0.011]
[1645847693468,0.57268368,39431.0,39423.0,0.0003691]
[1645847694269,0.57168368,39431.0,39423.0,0.0003691]
[1645847694470,0.57168368,39431.0,39421.0,0.011]
[1645847694671,0.57168368,39431.0,39423.0,0.0003691]
[1645847695176,0.57268368,39431.0,39423.0,0.0003691]
[1645847695570,0.57268368,39431.0,39421.0,0.011]
[1645847695770,0.57268368,39431.0,39423.0,0.0003691]
[1645847696374,0.57168368,39431.0,39423.0,0.0003691]
[1645847696772,0.57168368,39431.0,39421.0,0.011]
[1645847697018,0.57168368,39431.0,39423.0,0.0013691]
[1645847697921,0.57168368,39431.0,39423.0,0.001]
[1645847698119,0.57168368,39431.0,39423.0,0.0013691]
[1645847698319,0.57168368,39431.0,39423.0,0.0003691]
[1645847699120,0.57268368,39431.0,39421.0,0.011]
[1645847699521,0.57268368,39431.0,39423.0,0.0003691]
[1645847700425,0.57268368,39431.0,39421.0,0.011]
[1645847700622,0.62268368,39431.0,39423.0,0.0003691]
[1645847700874,0.62168368,39431.0,39423.0,0.0003691]
[1645847701073,0.62268368,39431.0,39423.0,0.0003691]
[1645847701673,0.62268368,39431.0,39421.0,0.011]
[1645847701877,0.62268368,39431.0,39423.0,0.0003691]
[1645847702276,0.32645578,39430.0,39423.0,0.0003691]
[1645847702875,0.32645578,39430.0,39421.0,0.011]
[1645847703081,0.32645578,39430.0,39423.0,0.0003691]
[1645847703479,0.0507,39429.0,39423.0,0.0003691]
[1645847703678,0.32645578,39428.0,39423.0,0.0003691]
[1645847703880,0.37708922,39428.0,39423.0,0.0003691]
[1645847704080,0.0507,39428.0,39421.0,0.011]
[1645847704279,0.0507,39428.0,39423.0,0.0003691]
[1645847705322,0.0507,39428.0,39421.0,0.011]
[1645847705522,0.0507,39428.0,39423.0,0.0003691]
[1645847705926,1.15,39427.0,39421.0,0.0109182]
[1645847707125,1.151,39427.0,39421.0,0.0109182]
[1645847708569,1.15,39427.0,39421.0,0.0109182]
[1645847708971,1.15,39427.0,39421.0,0.01115014]
[1645847709968,1.15,39427.0,39421.0,0.0109182]
[1645847710170,1.15,39427.0,39421.0,0.01128731]
[1645847711171,1.15,39427.0,39421.0,0.0109182]
[1645847711373,1.15,39427.0,39421.0,0.01128731]
[1645847712422,1.15,39427.0,39421.0,0.0109182]
[1645847712621,1.15,39427.0,39421.0,0.01128731]
[1645847713625,1.15,39427.0,39421.0,0.0109182]
[1645847713823,1.15,39427.0,39421.0,0.01128731]
[1645847714826,1.15,39427.0,39421.0,0.0109182]
[1645847715025,1.15,39427.0,39421.0,0.01128731]
[1645847715226,1.151,39427.0,39421.0,0.01128731]
[1645847716072,1.151,39427.0,39421.0,0.0109182]
[1645847716276,1.151,39427.0,39421.0,0.01128731]
[1645847716473,1.15,39427.0,39421.0,0.01128731]
[1645847717174,1.15,39427.0,39421.0,0.0109182]
[1645847717175,1.154,39427.0,39421.0,0.0109182]
[1645847717473,1.154,39427.0,39421.0,0.01128731]
[1645847718474,1.154,39427.0,39421.0,0.0109182]
[1645847718675,1.154,39427.0,39421.0,0.01128731]
[1645847719275,1.158,39427.0,39421.0,0.01128731]
[1645847719519,1.15,39427.0,39421.0,0.01128731]
[1645847719722,1.15,39427.0,39421.0,0.0109182]
[1645847719926,1.15,39427.0,39421.0,0.01128731]
[1645847720526,1.2,39427.0,39421.0,0.01128731]
[1645847721023,1.15,39427.0,39421.0,0.01128731]
[1645847721223,1.152,39427.0,39421.0,0.01128731]
[1645847722023,1.152,39427.0,39421.0,0.0109182]
[1645847722228,1.152,39427.0,39421.0,0.01128731]
[1645847723281,0.32645578,39426.0,39421.0,0.0109182]